Cogmind - Beta 13 @@@ ROGUE MODE // 2024.07.25 @ 16:28:22 Player: Tuwiuu Result: Destroyed by G9-FF8(R) with Subdweller Machine Gun Performance ------------- Evolutions (0) 0 Regions Visited (2) 400 Robots Destroyed (12) 60 Value Destroyed (294) 294 Prototype IDs (3) 60 Alien Tech Used (0) 0 Bonus (0) 0 TOTAL SCORE: 814 Bonus ------- None Cogmind --------- Core Integrity 0/250 Matter 290/300 Energy 264/265 System Corruption 0% Temperature Cool (2) Movement Flying (177) Ox2 Location -10/Subcaves Parts ------- > --- POWER (1) -------- Improved Ion Engine > --- PROPULSION (2) --- Improved Flight Unit Improved Flight Unit > --- UTILITY (2) ------ Scrap Shield > --- WEAPON (2) ------- Light Assault Rifle Mining Laser > --- INVENTORY (5) ---- Light Ion Engine Aluminum Leg Improved Flight Unit Improved Flight Unit Cooling System Peak State ------------ > --- POWER ------------ Improved Ion Engine > --- PROPULSION ------- Improved Flight Unit Improved Flight Unit > --- UTILITY ---------- Scrap Shield > --- WEAPON ----------- Light Assault Rifle Mining Laser > --- INVENTORY -------- Light Ion Engine Aluminum Leg Improved Flight Unit Improved Flight Unit Cooling System [Rating: 15] Favorites ----------- Power Improved Ion Engine Engine Improved Ion Engine Propulsion Aluminum Leg Treads Light Treads Leg Aluminum Leg Wheel Compact Wheel Flight Unit Improved Flight Unit Utility Small Storage Unit Device Improved Heat Sink Storage Small Storage Unit Protection Scrap Shield Weapon Assault Rifle Energy Gun EM Pulse Gun Ballistic Gun Assault Rifle Special Weapon Mining Laser Build | -11 -10 -10 ------- Run | Yrd Mat Sub Slots Evolved . | . . . Power . | . . . Propulsion . | . . . Utility . | . . . Weapon . | . . . Parts Attached 19 | 2 16 1 Power 3 | . 3 . Engine 3 | . 3 . Core . | . . . Reactor . | . . . Propulsion 9 | 2 7 . Treads 2 | . 2 . Leg 2 | . 2 . Wheel 3 | 2 1 . Hover . | . . . Flight 2 | . 2 . Utility 3 | . 2 1 Device 2 | . 2 . Storage . | . . . Processor . | . . . Hackware . | . . . Protection 1 | . . 1 Artifact . | . . . Weapon 4 | . 4 . Energy Gun 1 | . 1 . Energy Cannon . | . . . Ballistic Gun 2 | . 2 . Ballistic Cannon . | . . . Launcher . | . . . Special Weapon 1 | . 1 . Impact Weapon . | . . . Slashing Weapon . | . . . Piercing Weapon . | . . . Special Melee Weapon . | . . . Unidentified Prototypes 1 | . 1 . Parts Lost 7 | . 7 . Power 2 | . 2 . Propulsion 2 | . 2 . Utility . | . . . Weapon 3 | . 3 . Highest Loss Streak 6 | . 6 . To Critical Strikes . | . . . Average Slot Usage (%) 95 | . 95 85 Engine 12 | . 12 14 Treads 1 | . 1 . Leg 17 | . 17 . Wheel 8 | . 8 . Flight 1 | . 1 28 Device 12 | . 12 14 Storage 13 | . 13 . Energy Gun 5 | . 5 . Ballistic Gun 21 | . 21 14 Naked Turns . | . . . Heaviest Build 27 | 12 16 27 Greatest Support 40 | 32 40 10 Greatest Overweight (x) 2 | . 2 2 Average Overweight (x) . | . . 1 Largest Inventory Capacity 8 | 8 8 5 Average Capacity 7 | 8 7 5 Most Carried 8 | 6 8 5 Average Carried 7 | 6 7 5 Final Capacity 8 | 8 5 5 Final Carried 6 | 6 5 5 Class Distribution -------------------- 100% | Mutant Dominant Class ---------------- Mutant | -10/Materials Mutant | -10/Subcaves Resources | -11 -10 -10 ----------- Run | Yrd Mat Sub Matter Collected 425 | 220 205 . Remotely . | . . . Salvage Created 444 | . 444 . Parts 24 | . 24 . Haulers Intercepted 1 | . 1 . Recyclers Shooed . | . . . Parts Field Recycled . | . . . Retrieved Matter . | . . . Parts Self-Destructed . | . . . Prevented . | . . . Kills | -11 -10 -10 ------- Run | Yrd Mat Sub Combat Hostiles Destroyed 9 | . 9 . Guns 8 | . 8 . AOE 1 | . 1 . Classes Destroyed 5 | . 5 . Hauler 1 | . 1 . Recycler 1 | . 1 . Watcher 1 | . 1 . Swarmer 3 | . 3 . Grunt 6 | . 6 . Best Kill Streak 6 | . 6 . Combat Bots Only 5 | . 5 . Max Kills in Single Turn 1 | . 1 . Gunslinging . | . . . Exploded 1 | . 1 . Melee . | . . . Uniques/NPCs Destroyed . | . . . Combat | -11 -10 -10 -------- Run | Yrd Mat Sub Hostile Shots Fired 84 | . 84 . Missed 26 | . 26 . Damage Taken 858 | . 835 23 Core 265 | . 242 23 Absorbed by Shields . | . . . Core Remaining (%) 100 | 100 . . Volleys Fired 37 | . 37 . Largest 2 | . 2 . Hottest 105 | . 105 . Shots Fired 63 | . 63 . Gun 62 | . 62 . Cannon . | . . . Launcher . | . . . Special 1 | . 1 . Kinetic 27 | . 27 . Thermal 23 | . 23 . Explosive . | . . . Electromagnetic 13 | . 13 . Robot Hit Streak 12 | . 12 . Robot Miss Streak 2 | . 2 . Penetration Max . | . . . Secondary Targets . | . . . Shots Hit Robots 37 | . 37 . Core Hits 20 | . 20 . Critical Kills . | . . . Critical Parts Destroyed . | . . . Critical Strikes . | . . . Melee Attacks . | . . . Impact . | . . . Slashing . | . . . Piercing . | . . . Sneak Attacks . | . . . Combat Hostiles . | . . . Follow-up Attacks . | . . . Damage Inflicted 598 | . 598 . Guns 506 | . 506 . Cannons . | . . . Explosions 92 | . 92 . Melee . | . . . Ramming . | . . . Kinetic 222 | . 222 . Thermal 250 | . 250 . Explosive . | . . . Electromagnetic 126 | . 126 . Impact . | . . . Slashing . | . . . Piercing . | . . . Highest Corruption . | . . . Average Corruption . | . . . Corruption Purged . | . . . Corruption Blocked . | . . . Overload Shots . | . . . Overflow Damage . | . . . Projectiles . | . . . Explosions . | . . . Melee . | . . . Knockbacks . | . . . Impact . | . . . Kinetic . | . . . Secondary . | . . . Self-Inflicted Damage 56 | . 56 . Shots 1 | . 1 . Rammed . | . . . Targets Rammed . | . . . Kicked . | . . . Crushed . | . . . Highest Temperature 73 | . 73 . Average Temperature 22 | . 22 . Received Heat Transfer 216 | . 216 . Siege Activations . | . . . Robots Corrupted . | . . . Combat Hostiles . | . . . Parts Fried . | . . . Impact Corruptions . | . . . Robots Melted . | . . . Combat Hostiles . | . . . Parts Melted 1 | . 1 . Heat Transferred 470 | . 470 . Parts Sabotaged . | . . . Parts Stolen . | . . . Parts Stripped . | . . . Power Chain Reactions 1 | . 1 . Alert | -11 -10 -10 ------- Run | Yrd Mat Sub Peak Influence 296 | . 296 . Initial . | . . . Average 129 | . 133 . Maximum Alert Level 1 | . 1 . Low Security (%) 64 | 100 63 . Level 1 35 | . 36 . Level 2 . | . . . Level 3 . | . . . Level 4 . | . . . Level 5 . | . . . High Security . | . . . Max Security . | . . . Squads Dispatched 1 | . 1 . Investigation . | . . . Extermination . | . . . Reinforcement 1 | . 1 . Assault . | . . . Garrison . | . . . Intercept . | . . . Searches Triggered . | . . . Construction Impeded . | . . . Haulers Reinforced . | . . . Active Scanning Responses . | . . . Cargo Convoy Interrupts . | . . . Stealth | -11 -10 -10 --------- Run | Yrd Mat Sub Distress Signals . | . . . Communications Jammed . | . . . Distress Signals . | . . . Times Spotted 19 | . 17 2 Peak Tracking Total 3 | . 3 2 Tactical Retreats 2 | . 2 . Traps | -11 -10 -10 ------- Run | Yrd Mat Sub Traps Triggered 1 | . 1 . Indirectly . | . . . Trap Hack Attempts . | . . . Triggered . | . . . Disarmed . | . . . Reprogrammed . | . . . Reused . | . . . Traps Extracted . | . . . Installed . | . . . Triggered . | . . . Machines | -11 -10 -10 ---------- Run | Yrd Mat Sub Machines Disabled 1 | . 1 . Max in Single Turn 1 | . 1 . Machines Repaired . | . . . Machines Dismantled . | . . . Machines Sabotaged . | . . . Overloaded Fab Kills . | . . . Hacking | -11 -10 -10 --------- Run | Yrd Mat Sub Machines Accessed 4 | . 4 . Terminals 4 | . 4 . Fabricators . | . . . Repair Stations . | . . . Recycling Units . | . . . Scanalyzers . | . . . Garrison Access . | . . . Total Hacks 9 | . 9 . Successful 8 | . 8 . Failed 1 | . 1 . Catastrophic . | . . . Database Lockouts . | . . . Manual 3 | . 3 . Terminals 9 | . 9 . Fabricators . | . . . Repair Stations . | . . . Recycling Units . | . . . Scanalyzers . | . . . Garrison Access . | . . . Terminal Hacks 8 | . 8 . Prototype ID Bank 1 | . 1 . Unreport Threat 1 | . 1 . Locate Traps 2 | . 2 . Hauler Manifests 1 | . 1 . Zone Layout 3 | . 3 . Fabricator Hacks . | . . . Repair Station Hacks . | . . . Recycling Unit Hacks . | . . . Scanalyzer . | . . . Garrison Access Hacks . | . . . Unauthorized Hacks . | . . . Terminals . | . . . Fabricators . | . . . Repair Stations . | . . . Recycling Units . | . . . Scanalyzers . | . . . Garrison Access . | . . . Data Cores Recovered . | . . . Used . | . . . Hacking Detections 3 | . 3 . Full Trace Events . | . . . Feedback Events . | . . . Feedback Blocked . | . . . Robot Schematics Acquired . | . . . Robots Built . | . . . Authchips . | . . . Time . | . . . Total Robot Build Rating . | . . . Part Schematics Acquired . | . . . Parts Built . | . . . Authchips . | . . . Time . | . . . Total Part Build Rating . | . . . Parts Repaired . | . . . Time . | . . . Parts Recycled . | . . . Recycled Matter . | . . . Retrieved Matter . | . . . Retrieved Components . | . . . Parts Scanalyzed . | . . . Part Schematics Acquired . | . . . Parts Damaged . | . . . Bothacking | -11 -10 -10 ------------ Run | Yrd Mat Sub Used RIF Installer . | . . . Robots Hacked . | . . . Non-combat . | . . . Combat . | . . . Robot Hacks Applied . | . . . Relay Couplers Released . | . . . Fabnet Peak Effective % . | . . . Robots Rewired . | . . . Allies Hacked . | . . . Hacks Repelled . | . . . Allies | -11 -10 -10 -------- Run | Yrd Mat Sub Total Allies . | . . . Largest Group . | . . . Highest-Rated Group . | . . . Highest-Rated Ally . | . . . Total Orders . | . . . Ally Attacks . | . . . Total Damage . | . . . Kills . | . . . Allies Corrupted . | . . . Allies Melted . | . . . Intel | -11 -10 -10 ------- Run | Yrd Mat Sub Robot Analysis Total . | . . . Derelict Logs Recovered . | . . . Drone Launches . | . . . Drone Recoveries . | . . . Exploration | -11 -10 -10 ------------- Run | Yrd Mat Sub Turns Passed 573 | 15 552 6 Spaces Moved 359 | 11 345 3 Core . | . . . Treads 2 | . 2 . Legs 258 | . 258 . Wheels 66 | 11 55 . Hover . | . . . Flight 33 | . 30 3 Fastest Speed 37 | 100 37 37 Average Speed 110 | 100 110 130 Slowest Speed 190 | 100 190 177 Overloaded Moves . | . . . Propulsion Burnouts . | . . . Robots Hopped . | . . . Cave-ins Triggered . | . . . Exploration Rate (%) 21 | 2 60 2 Regions Visited 2 Branch Regions 1 Pre-discovered Areas . | . . . Known Exits Taken . | . . . Unknown Exits Taken 2 | 1 1 . Scrap Searched . | . . . Spaces Dug 1 | . 1 . Terrain Destroyed 5 | . 5 . Melee . | . . . Projectile 1 | . 1 . AOE 4 | . 4 . Terrain Rammed . | . . . Walls Destroyed . | . . . Machines Disabled . | . . . Actions | -11 -10 -10 --------- Run | Yrd Mat Sub Total 473 | 13 454 6 Wait 34 | 1 32 1 Move 357 | 10 344 3 Hop . | . . . Pick Up 14 | . 14 . Fast Attach 6 | . 5 1 Attach 6 | . 6 . Detach . | . . . Swap 7 | 2 5 . Drop 12 | . 11 1 Fire 37 | . 37 . Melee . | . . . Ram . | . . . Kick . | . . . Crush . | . . . Escape Stasis . | . . . Rewire . | . . . Trap . | . . . Miscellaneous . | . . . Route ------- -11/Scrapyard -10/Materials (discovered 3 exits: [*Mat] / [*Min] / [*Sub]) -10/Subcaves History --------- Turn | Location | Event 6 | -11/Scrapyard | Discovered new exit (range 3) 16 | -11/Scrapyard | Entered Materials 168 | -10/Materials | Core integrity fell below 50% 206 | -10/Materials | Lost 6 parts (2p2n2w) 335 | -10/Materials | Build established: Mutant 405 | -10/Materials | Discovered new exit (range 16) 507 | -10/Materials | Discovered new exit (range 11) 516 | -10/Materials | Derelicts attacked the area 548 | -10/Materials | Core integrity fell below 20% 563 | -10/Materials | Discovered new exit (range 10) 568 | -10/Materials | Entered Subcaves 572 | -10/Subcaves | Ambushed by Subdwellers from Twisted Machinery 574 | -10/Subcaves | Destroyed by G9-FF8(R) with Subdweller Machine Gun Last Messages --------------- 00547_ Acquired Imp. Flight Unit. 00548_ Dropped Sml. Storage Unit. 00549_ Dropped Aluminum Leg. 00549_ Acquired Imp. Flight Unit. 00551_ Dropped Aluminum Leg. 00551_ Acquired Imp. Flight Unit. 00563_ Extracted 25 matter. 00563_ EXIT=FOUND 00565_ Acquired Lgt. Ion Engine. LOCATION=UNKNOWN AMBIENT_HEAT=-10 GOAL=ESCAPE 00569_ 2T-U40(h): "Hey you don't look like the usual menacing locals. I'm on point searching for advanced tech we've heard is being developed in secret down here, seen anything like that?" 00570_ 2T-U40(h) drops a Scrap Shield: "Protect yourself with this!" 00570_ Dropped Sensor Array. 00570_ Acquired Scrap Shield. 00572_ A6-0A0(R) emerges from the Twisted Machinery. 00572_ HV Slug penetrates Twisted Machinery. Map ----- +----------------------------------------------------+ | | | | | | | | | | | ?????????????????????????????????????????????????? | | ?????????????????????????????????????????????????? | | ?????????????????????????????????????????????????? | | ?????????????????????????????????????????????????? | | ?????????????????????????????????????????????????? | | ?????????????????????????????????????????????????? | | ?????????????????????????????????????????????????? | | ?????????????????????????????????????????????????? | | ?????????????????????????????????????????????????? | | ?????????????????????????????????????????????????? | | ?????????????????????????????????????????????????? | | ?????????????????????????????????????????????????? | | ?????????????????????????????????????????????????? | | ?????????????????????????????????????????????????? | | ?????????????????????##??#######?????????????????? | | ???????????????????### ### ""##????????????????? | | ??????????????????## ##???????????????? | | ??????????????????# #???????????????? | | ??????????????????## "#???????????????? | | ???????????????????## h R"" ????????? | | ????????????????????## ##@ R ????????? | | ?????????????????????#??# # # #???????????? | | ???????????????????????? ##?#??????????????? | | ???????????????????????? $ "#?????????????????? | | ??????????????????????? $ "#?????????????????? | | ??????????????????????? ####?????????????????? | | ?????????????????????? #????????????????????? | | ?????????????????????? ????????????????????? | | ????????????????????? ????????????????????? | | ????????????????????? ### "???????????????????? | | ???????????????????? #??? "???????????????????? | | ???????????????????? ???? ???????????????????? | | ??????????????????? ???? ???????????????????? | | ??????????????????? ###???? ???????????????????? | | ???????????????????????????? ???????????????????? | | ?????????????????????????????????????????????????? | | ?????????????????????????????????????????????????? | | ?????????????????????????????????????????????????? | | ?????????????????????????????????????????????????? | | ?????????????????????????????????????????????????? | | ?????????????????????????????????????????????????? | | ?????????????????????????????????????????????????? | | ?????????????????????????????????????????????????? | | ?????????????????????????????????????????????????? | | ?????????????????????????????????????????????????? | +----------------------------------------------------+ Best States ------------- Heat Dissipation 39 Energy Generation 12 Energy Capacity 265 Matter Stores 300 Matter Capacity 300 Sight Range 16 Robot Scan Range 14 Terrain Scan Density 10 Evasion (%) 62 Recoil Reduction 2 Item Schematics ----------------- None Robot Schematics ------------------ None Fabricated ------------ Nothing Alien Tech Used ----------------- None Achievements -------------- None Challenges ------------ None Game ------ Seed MetafieldSingularityScanner Manual? 0 Play Time 00:13:20 Cumulative 20.0 hours Start 2024.07.25 @ 16:15:32 End 2024.07.25 @ 16:28:22 Sessions 1 Manual Loads 0 Difficulty Rogue Special Mode None Game No. 10 Rogue 10 Adventurer 0 Explorer 0 Win Type - Total 0 Types 0/0/0/0/0/0/0/0/0 Lore% 23 Gallery% 20 Achievement% 21 Wizard Run 0 Options --------- Layout 0 ASCII 0 Keyboard 0 Movement Mouse Keybinds 0 Fullscreen 2 Font 36/Smallcaps Map View 76x50 Zoom Use 0% Tactical HUD 1 Map Filters NONE Filters NONE Steam 1 RUN: 77735e65-8cf6-4f0c-8b3c-e2264c09f2e9